fUSD/lending_fUSD_20260402
["ID","MTS","AMOUNT","RATE_DAILY","PERIOD"]
[419275818,1775092238577,-529.17667328,9.499e-05,2]
[419275819,1775092238586,-268.74366172,9.499e-05,2]
[419275820,1775092238598,-231.25633828,9.499e-05,2]
[419275821,1775092238608,-500.0,9.499e-05,2]
[419275822,1775092238618,-500.0,9.499e-05,2]
[419275823,1775092238628,-500.0,9.499e-05,2]
[419275824,1775092238637,-495.20113526,9.499e-05,2]
[419275825,1775092238649,-4.79886474,9.499e-05,2]
[419275826,1775092238658,-500.0,9.499e-05,2]
[419275827,1775092238667,-471.61067969,9.499e-05,2]
[419275828,1775092238678,-28.38932031,9.499e-05,2]
[419275829,1775092238688,-500.0,9.499e-05,2]
[419275830,1775092238697,-500.0,9.499e-05,2]
[419275831,1775092238706,-500.0,9.499e-05,2]
[419275832,1775092238716,-500.0,9.499e-05,2]
[419275833,1775092238726,-500.0,9.499e-05,2]
[419275834,1775092238738,-500.0,9.499e-05,2]
[419275835,1775092238747,-500.0,9.499e-05,2]
[419275836,1775092238757,-731.14171291,9.5e-05,3]
[419275837,1775092238770,-1719.17645956,9.5e-05,3]
[419275838,1775092238781,-1677.91509441,9.5e-05,3]
[419275839,1775092238793,-10721.13049718,9.5e-05,3]
[419275840,1775092238805,-7279.56751119,9.5e-05,3]
[419275841,1775092238831,-9544.37228058,9.5e-05,3]
[419275842,1775092238842,-3746.08690304,9.5e-05,3]
[419275843,1775092238853,-546.1711629,9.5e-05,3]
[419275844,1775092238890,-258.6,9.5e-05,3]
[419275845,1775092238902,-383.736,9.5e-05,3]
[419275846,1775092238929,-615.21547425,9.5e-05,3]
[419275847,1775092238940,-6789.90213005,9.5e-05,3]
[419275850,1775092240921,-283102.75988715,9.5e-05,3]
[419275851,1775092240932,-250.0,9.577e-05,2]
[419275852,1775092240942,-176.07,9.68e-05,2]
[419275853,1775092240953,-319.77012745,0.00010415,2]
[419275854,1775092240962,-5000.0,0.00010421,2]
[419275855,1775092240973,-187.50832204,0.00010421,2]
[419275856,1775092240983,-250.0,0.00010421,2]
[419275857,1775092240992,-5534.0,0.00011,3]
[419275858,1775092241002,-1902.44781501,0.00011099,2]
[419275859,1775092241011,-1902.44781501,0.00011099,2]
[419275860,1775092241023,-1902.44781501,0.00011099,2]
[419275861,1775092241033,-5534.0,0.000113,5]
[419275862,1775092241043,-1200.0,0.00011399,2]
[419275863,1775092241053,-195.0,0.00011609,2]
[419275864,1775092241063,-300.0,0.00011711,2]
[419275865,1775092241073,-1360.50160605,0.00011712,2]
[419275866,1775092241083,-600.0,0.00011712,2]
[419275867,1775092241094,-600.0,0.00011712,2]
[419275868,1775092241105,-600.0,0.00011712,2]
[419275869,1775092241116,-288.2303387,0.00011712,2]
[419275870,1775092241126,-176.07,0.000121,2]
[419275871,1775092241137,-1680.0,0.00012539,2]
[419275872,1775092241147,-243.12,0.00012762,2]
[419275873,1775092241157,-240.84,0.0001277,2]
[419275874,1775092241166,-420.0,0.0001286,2]
[419275875,1775092241175,-715.9650813,0.00012998,3]
[419275876,1775092241185,-250.0,0.00013,2]
[419275877,1775092241194,-295.07,0.00013046,2]
[419275878,1775092241204,-510.0,0.00013111,2]
[419275879,1775092241216,-510.0,0.00013111,2]
[419275880,1775092241225,-191.7152248,0.00013699,2]
[419275881,1775092241236,-1871.0,0.00013793,2]
[419275882,1775092241245,-150.0,0.000139,2]
[419275883,1775092241255,-166.66,0.00013961,2]
[419275884,1775092241264,-166.66,0.00014255,2]
[419275885,1775092241273,-3240.0,0.00014392,2]
[419275886,1775092241283,-1571.0,0.000144,2]
[419275887,1775092241294,-176.07,0.0001452,2]
[419275888,1775092241303,-1600.0,0.0001452,2]
[419275889,1775092241312,-161.23,0.0001452,2]
[419275890,1775092241322,-5347.21,0.0001452,2]
[419275891,1775092241331,-1500.0,0.0001452,2]
[419275892,1775092241342,-166.66,0.00014549,2]
[419275893,1775092241352,-162.0,0.0001472,2]
[419275894,1775092241362,-166.66,0.00014843,2]
[419275895,1775092241371,-150.0,0.00014908,2]
[419275896,1775092241381,-1101.4760449,0.00014909,2]
[419275897,1775092241392,-5039.6734447,0.00014909,2]
[419275898,1775092241401,-161.9375867,0.00014909,2]
[419275899,1775092241411,-2791.712034,0.00014909,2]
[419275900,1775092241421,-14687.1397738,0.00014909,2]
[419275901,1775092241430,-2193.160695,0.00014909,2]
[419275902,1775092241439,-2372.8749459,0.00014909,2]
[419275903,1775092241448,-168.8088,0.000151,7]
[419275904,1775092241459,-166.66,0.00015137,2]
[419275905,1775092241469,-250.0,0.00015142,2]
[419275907,1775092241479,-174.61919141,0.00015142,2]
[419275908,1775092241491,-250.0,0.00015142,2]
[419275909,1775092241501,-1980.1019,0.0001526,2]
[419275910,1775092241510,-1600.0,0.000153,5]
[419275911,1775092241519,-151.0,0.00015307,2]
[419275912,1775092241529,-151.0,0.00015307,2]
[419275913,1775092241538,-3343.96,0.0001531,2]
[419275914,1775092241547,-150.99,0.0001531,2]
[419275915,1775092241556,-9999.99,0.0001531,2]
[419275916,1775092241565,-999.99,0.0001531,2]
[419275917,1775092241575,-153.59,0.0001531,2]
[419275918,1775092241585,-1266.38,0.0001531,2]
[419275919,1775092241596,-9972.69,0.0001531,2]
[419275920,1775092241605,-9999.99,0.0001531,2]
[419275921,1775092241615,-151.0,0.00015357,2]
[419275922,1775092241625,-117100.4993,0.0001536,2]
[419275923,1775092241634,-13326.8864,0.0001536,2]
[419275924,1775092241644,-500.0,0.00015373,2]
[419275925,1775092241653,-500.0,0.00015373,2]
[419275926,1775092241663,-500.0,0.00015373,2]
[419275927,1775092241673,-167.54621865,0.00015373,2]
[419275928,1775092241683,-3200.0,0.000154,5]
[419275929,1775092241692,-166.66,0.00015431,2]
[419275930,1775092241702,-151.0,0.0001546,2]
[419275931,1775092241711,-1154.87669766,0.0001546,2]
[419275932,1775092241720,-6489.83156898,0.00015499,2]
[419275933,1775092241731,-4800.0,0.000155,5]
[419275934,1775092241740,-1749.06,0.00015507,2]
[419275935,1775092241750,-6489.83156898,0.00015544,2]
[419275936,1775092241759,-160.0,0.00015553,7]
[419275937,1775092241768,-401.184385,0.00015553,7]
[419275939,1775092241778,-642.36877,0.00015553,7]
[419275941,1775092241788,-30000.0,0.0001556,2]
[419275942,1775092241797,-151.0,0.0001556,2]
[419275943,1775092241807,-151.0,0.0001556,2]
[419275944,1775092241817,-151.0,0.0001556,2]
[419275945,1775092241830,-391.658755,0.0001556,2]
[419275946,1775092241842,-391.658755,0.0001556,2]
[419275947,1775092241856,-391.658755,0.0001556,2]
[419275948,1775092241869,-391.658755,0.0001556,2]
[419275949,1775092241880,-1040.91917,0.0001556,2]
[419275950,1775092241891,-1040.91917,0.0001556,2]
[419275951,1775092241902,-1040.91917,0.0001556,2]
[419275952,1775092241914,-1040.91917,0.0001556,2]
[419275953,1775092241924,-799.597426,0.0001556,2]
[419275954,1775092241935,-799.597426,0.0001556,2]
[419275955,1775092241945,-799.597426,0.0001556,2]
[419275956,1775092241955,-799.597426,0.0001556,2]
[419275957,1775092241965,-160.0,0.00015562,7]
[419275958,1775092241974,-187.072769,0.00015562,7]
[419275959,1775092241988,-214.145538,0.00015562,7]
[419275960,1775092241999,-160.0,0.00015562,7]
[419275961,1775092242009,-1038.96599,0.00015562,7]
[419275962,1775092242020,-1917.93198,0.00015562,7]
[419275963,1775092242030,-180.270125,0.00015562,7]
[419275964,1775092242041,-160.0,0.00015562,7]
[419275965,1775092242051,-773.87755,0.00015562,7]
[419275966,1775092242062,-1387.755101,0.00015562,7]
[419275967,1775092242073,-500.38401516,0.00015573,2]
[419275968,1775092242084,-500.0,0.00015573,2]
[419275969,1775092242095,-500.0,0.00015573,2]
[419275970,1775092242106,-151.0,0.00015577,2]
[419275971,1775092242117,-151.0,0.00015577,2]
[419275972,1775092242127,-500.0,0.00015579,2]
[419275973,1775092242138,-500.0,0.00015579,2]
[419275974,1775092242148,-500.0,0.00015579,2]
[419275975,1775092242158,-500.0,0.00015579,2]
[419275976,1775092242169,-500.0,0.00015579,2]
[419275977,1775092242179,-500.0,0.00015579,2]
[419275978,1775092242190,-500.0,0.00015579,2]
[419275979,1775092242201,-34497.2188523,0.0001558,2]
[419275980,1775092242214,-6489.83156898,0.00015588,2]
[419275981,1775092242225,-500.0,0.00015599,2]
[419275982,1775092242239,-500.0,0.00015599,2]
[419275983,1775092242251,-500.0,0.00015599,2]
[419275984,1775092242261,-500.0,0.00015599,2]
[419275985,1775092242272,-6400.0,0.000156,5]
[419275986,1775092242282,-6489.83156898,0.00015633,2]
[419275987,1775092242295,-855.16862305,0.00015634,2]
[419275988,1775092242305,-30000.0,0.0001566,2]
[419275989,1775092242316,-151.0,0.0001566,2]
[419275990,1775092242325,-151.0,0.0001566,2]
[419275991,1775092242337,-151.0,0.0001566,2]
[419275992,1775092242349,-151.0,0.0001566,2]
[419275993,1775092242360,-391.658755,0.0001566,2]
[419275994,1775092242370,-391.658755,0.0001566,2]
[419275995,1775092242380,-391.658755,0.0001566,2]
[419275996,1775092242390,-391.658755,0.0001566,2]
[419275997,1775092242401,-1040.91917,0.0001566,2]
[419275998,1775092242411,-1040.91917,0.0001566,2]
[419275999,1775092242422,-1040.91917,0.0001566,2]
[419276000,1775092242434,-1040.91917,0.0001566,2]
[419276001,1775092242444,-799.597426,0.0001566,2]
[419276002,1775092242454,-799.597426,0.0001566,2]
[419276003,1775092242465,-799.597426,0.0001566,2]
[419276004,1775092242476,-799.597426,0.0001566,2]
[419276005,1775092242490,-6489.83156898,0.00015677,2]
[419276006,1775092242501,-2808.0,0.0001568,2]
[419276007,1775092242511,-1571.0,0.0001568,2]
[419276008,1775092242522,-181.08010149,0.0001569,2]
[419276009,1775092242533,-8000.0,0.000157,5]
[419276010,1775092242544,-350.0,0.00015714,2]
[419276011,1775092242555,-151.0,0.00015717,2]
[419276012,1775092242565,-9999.99999905,0.0001572,2]
[419276013,1775092242577,-6489.83156898,0.00015722,2]
[419276014,1775092242587,-151.0,0.00015729,2]
[419276015,1775092242598,-151.0,0.00015729,2]
[419276016,1775092242609,-151.0,0.00015729,2]
[419276017,1775092242620,-151.0,0.00015729,2]
[419276018,1775092242631,-151.0,0.00015729,2]
[419276019,1775092242642,-350.0,0.00015755,2]
[419276020,1775092242653,-30000.0,0.0001576,2]
[419276021,1775092242665,-151.0,0.0001576,2]
[419276022,1775092242675,-151.0,0.0001576,2]
[419276023,1775092242685,-151.0,0.0001576,2]
[419276024,1775092242698,-6489.83156898,0.00015766,2]
[419276025,1775092242708,-500.0,0.00015769,2]
[419276026,1775092242719,-500.0,0.00015769,2]
[419276027,1775092242728,-500.0,0.00015769,2]
[419276028,1775092242740,-799.597426,0.0001577,2]
[419276029,1775092242750,-799.597426,0.0001577,2]
[419276030,1775092242761,-799.597426,0.0001577,2]
[419276031,1775092242771,-799.597426,0.0001577,2]
[419276032,1775092242782,-500.0,0.00015773,2]
[419276033,1775092242794,-500.0,0.00015773,2]
[419276034,1775092242805,-501.35320755,0.00015773,2]
[419276035,1775092242817,-500.0,0.00015773,2]
[419276036,1775092242827,-500.0,0.00015773,2]
[419276037,1775092242836,-500.0,0.00015773,2]
[419276038,1775092242847,-500.78770604,0.00015773,2]
[419276039,1775092242857,-500.0,0.00015773,2]
[419276040,1775092242869,-500.0,0.00015773,2]
[419276041,1775092242880,-500.0,0.00015773,2]
[419276042,1775092242892,-391.658755,0.00015773,2]
[419276043,1775092242904,-391.658755,0.00015773,2]
[419276044,1775092242914,-391.658755,0.00015773,2]
[419276045,1775092242925,-391.658755,0.00015773,2]
[419276046,1775092242936,-1040.91917,0.00015773,2]
[419276047,1775092242946,-1040.91917,0.00015773,2]
[419276048,1775092242959,-1040.91917,0.00015773,2]
[419276049,1775092242968,-1040.91917,0.00015773,2]
[419276050,1775092242978,-500.0,0.00015779,2]
[419276051,1775092242989,-500.0,0.00015779,2]
[419276052,1775092243000,-500.0,0.00015779,2]
[419276053,1775092243010,-500.0,0.00015779,2]
[419276054,1775092243021,-500.0,0.00015779,2]
[419276055,1775092243032,-500.0,0.00015779,2]
[419276056,1775092243042,-500.0,0.00015779,2]
[419276057,1775092243052,-500.0,0.00015779,2]
[419276058,1775092243062,-151.0,0.0001578,2]
[419276059,1775092243072,-151.0,0.0001578,2]
[419276060,1775092243082,-1600.0,0.000158,5]
[419276061,1775092243093,-6489.83156898,0.00015811,2]
[419276062,1775092243104,-350.0,0.0001583,2]
[419276063,1775092243115,-1682.08,0.00015831,2]
[419276064,1775092243125,-1000.0,0.0001584,2]
[419276065,1775092243136,-1000.0,0.0001584,2]
[419276066,1775092243146,-151.0,0.00015844,2]
[419276067,1775092243157,-1000.0,0.0001585,2]
[419276068,1775092243168,-6489.83156898,0.00015855,2]
[419276070,1775092243178,-30000.0,0.0001586,2]
[419276071,1775092243189,-151.0,0.0001586,2]
[419276073,1775092243199,-189.213513,0.0001586,2]
[419276075,1775092243210,-151.0,0.0001586,2]
[419276077,1775092243220,-151.0,0.0001586,2]
[419276078,1775092243231,-250.860871,0.0001586,2]
[419276079,1775092243241,-30000.0,0.0001587,2]
[419276080,1775092243252,-151.0,0.0001587,2]
[419276081,1775092243263,-151.0,0.0001587,2]
[419276082,1775092243273,-151.0,0.0001587,2]
[419276083,1775092243284,-151.0,0.0001587,2]
[419276084,1775092243294,-151.0,0.0001587,2]
[419276085,1775092243306,-391.658755,0.0001587,2]
[419276086,1775092243317,-391.658755,0.0001587,2]
[419276087,1775092243333,-391.658755,0.0001587,2]
[419276088,1775092243344,-391.658755,0.0001587,2]
[419276089,1775092243354,-1040.91917,0.0001587,2]
[419276090,1775092243365,-1040.91917,0.0001587,2]
[419276091,1775092243375,-1040.91917,0.0001587,2]
[419276092,1775092243385,-1040.91917,0.0001587,2]
[419276093,1775092243395,-799.597426,0.0001587,2]
[419276094,1775092243406,-799.597426,0.0001587,2]
[419276095,1775092243416,-799.597426,0.0001587,2]
[419276096,1775092243427,-799.597426,0.0001587,2]
[419276097,1775092243437,-501.10997346,0.00015873,2]
[419276098,1775092243448,-500.0,0.00015873,2]
[419276099,1775092243458,-500.0,0.00015873,2]
[419276100,1775092243469,-500.0,0.00015879,2]
[419276101,1775092243479,-500.0,0.00015879,2]
[419276102,1775092243491,-500.0,0.00015879,2]
[419276103,1775092243501,-500.0,0.00015879,2]
[419276104,1775092243511,-500.0,0.00015879,2]
[419276105,1775092243522,-500.0,0.00015879,2]
[419276106,1775092243532,-500.0,0.00015879,2]
[419276107,1775092243543,-500.0,0.00015879,2]
[419276108,1775092243553,-500.0,0.00015879,2]
[419276109,1775092243563,-500.0,0.00015879,2]
[419276110,1775092243574,-58519.02445331,0.0001588,2]
[419276111,1775092243584,-151.0,0.0001588,2]
[419276112,1775092243595,-151.0,0.0001588,2]
[419276113,1775092243605,-151.0,0.0001588,2]
[419276114,1775092243616,-151.0,0.0001588,2]
[419276115,1775092243627,-151.0,0.0001588,2]
[419276116,1775092243637,-391.658755,0.0001588,2]
[419276117,1775092243648,-391.658755,0.0001588,2]
[419276118,1775092243658,-391.658755,0.0001588,2]
[419276119,1775092243669,-391.658762,0.0001588,2]
[419276120,1775092243679,-1040.91917,0.0001588,2]
[419276121,1775092243690,-1040.91917,0.0001588,2]
[419276122,1775092243700,-1040.91917,0.0001588,2]
[419276123,1775092243710,-1040.919163,0.0001588,2]
[419276167,1775092244710,-799.597426,0.0001588,2]
[419276168,1775092244721,-799.597426,0.0001588,2]
[419276169,1775092244731,-799.597426,0.0001588,2]
[419276170,1775092244743,-799.597422,0.0001588,2]
[419276171,1775092244752,-1096.34,0.0001589,2]
[419276172,1775092244761,-1749.06,0.00015895,2]
[419276173,1775092244772,-151.0,0.00015895,2]
[419276174,1775092244782,-8912.2434,0.00015899,2]
[419276175,1775092244792,-151.0,0.000159,2]
[419276176,1775092244802,-5000.0,0.000159,2]
[419276177,1775092244811,-1600.0,0.000159,5]
[419276178,1775092244820,-404.31813218,0.000159,2]
[419276179,1775092244831,-6489.83156898,0.000159,2]
[419276180,1775092244841,-169.13647166,0.000159,2]
[419276181,1775092244851,-3261.7682368,0.000159,2]
[419276182,1775092244860,-1425.95669506,0.000159,2]
[419276183,1775092244870,-464.92672522,0.000159,2]
[419276184,1775092244879,-2000.0,0.000159,2]
[419276185,1775092244888,-1621.28783196,0.000159,2]
[419276186,1775092244897,-193.15709324,0.000159,2]
[419276187,1775092244906,-500.76603134,0.00015921,2]
[419276188,1775092244915,-14041.0,0.00015973,2]
[419276189,1775092244924,-387.6231554,0.00015973,2]
[419276190,1775092244934,-2000.0,0.00015977,2]
[419276191,1775092244942,-240.55275148,0.00015984,2]
[419276192,1775092244951,-198.96816428,0.00015984,2]
[419276193,1775092244961,-198.96816428,0.00015984,2]
[419276194,1775092244970,-182.87768214,0.00015984,2]
[419276195,1775092244979,-212.50741348,0.00015984,2]
[419276196,1775092244990,-154.76197117,0.00015984,2]
[419276197,1775092244999,-154.6939998,0.00015984,2]
[419276198,1775092245008,-206.85152586,0.00015989,2]
[419276199,1775092245018,-206.85152586,0.0001599,2]
[419276200,1775092245027,-206.85152586,0.0001599,2]
[419276201,1775092245038,-666.0,0.00015999,2]
[419276202,1775092245048,-666.0,0.00015999,2]
[419276203,1775092245059,-666.0,0.00015999,2]
[419276204,1775092245068,-500.0,0.00015999,2]
[419276205,1775092245079,-500.0,0.00015999,2]
[419276206,1775092245089,-500.0,0.00015999,2]
[419276207,1775092245100,-500.0,0.00015999,2]
[419276208,1775092245111,-500.0,0.00015999,2]
[419276209,1775092245120,-500.0,0.00015999,2]
[419276210,1775092245129,-500.0,0.00015999,2]
[419276211,1775092245138,-500.0,0.00015999,2]
[419276212,1775092245147,-500.0,0.00015999,2]
[419276213,1775092245156,-500.0,0.00015999,2]
[419276214,1775092245166,-582.8,0.00015999,2]
[419276215,1775092245175,-500.0,0.00015999,2]
[419276216,1775092245184,-500.0,0.00015999,2]
[419276217,1775092245194,-500.0,0.00015999,2]
[419276218,1775092245203,-622.32020862,0.00015999,2]
[419276219,1775092245214,-177.714,0.00015999,2]
[419276220,1775092245223,-500.0,0.00015999,2]
[419276221,1775092245236,-500.0,0.00015999,2]
[419276222,1775092245245,-500.0,0.00015999,2]
[419276223,1775092245254,-500.0,0.00015999,2]
[419276224,1775092245263,-500.0,0.00015999,2]
[419276225,1775092245273,-500.0,0.00015999,2]
[419276226,1775092245284,-500.0,0.00015999,2]
[419276227,1775092245293,-500.0,0.00015999,2]
[419276228,1775092245303,-433.14001088,0.00015999,2]
[419276229,1775092245315,-500.0,0.00015999,2]
[419276230,1775092245324,-500.0,0.00015999,2]
[419276231,1775092245335,-500.0,0.00015999,2]
[419276232,1775092245345,-500.0,0.00015999,2]
[419276233,1775092245355,-500.0,0.00015999,2]
[419276234,1775092245365,-500.0,0.00015999,2]
[419276235,1775092245375,-500.0,0.00015999,2]
[419276236,1775092245386,-500.0,0.00015999,2]
[419276237,1775092245396,-500.0,0.00015999,2]
[419276238,1775092245405,-500.0,0.00015999,2]
[419276239,1775092245414,-500.0,0.00015999,2]
[419276240,1775092245424,-500.0,0.00015999,2]
[419276241,1775092245433,-500.0,0.00015999,2]
[419276242,1775092245444,-500.0,0.00015999,2]
[419276243,1775092245453,-500.0,0.00015999,2]
[419276244,1775092245463,-500.0,0.00015999,2]
[419276245,1775092245472,-500.0,0.00015999,2]
[419276246,1775092245482,-500.0,0.00015999,2]
[419276247,1775092245494,-500.0,0.00015999,2]
[419276248,1775092245503,-500.0,0.00015999,2]
[419276249,1775092245512,-500.0,0.00015999,2]
[419276250,1775092245523,-500.0,0.00015999,2]
[419276251,1775092245532,-500.0,0.00015999,2]
[419276252,1775092245541,-528.6058004,0.00015999,2]
[419276253,1775092245551,-500.0,0.00015999,2]
[419276254,1775092245562,-500.0,0.00015999,2]
[419276255,1775092245572,-500.0,0.00015999,2]
[419276256,1775092245582,-500.0,0.00015999,2]
[419276257,1775092245592,-500.0,0.00015999,2]
[419276258,1775092245601,-500.0,0.00015999,2]
[419276259,1775092245610,-500.0,0.00015999,2]
[419276260,1775092245620,-500.0,0.00015999,2]
[419276261,1775092245630,-500.0,0.00015999,2]
[419276262,1775092245640,-359.10439347,0.00015999,2]
[419276263,1775092245649,-500.0,0.00015999,2]
[419276264,1775092245659,-521.49256365,0.00015999,2]
[419276265,1775092245668,-500.0,0.00015999,2]
[419276266,1775092245677,-500.0,0.00015999,2]
[419276267,1775092245687,-500.0,0.00015999,2]
[419276268,1775092245696,-500.0,0.00015999,2]
[419276269,1775092245706,-500.0,0.00015999,2]
[419276270,1775092245716,-500.0,0.00015999,2]
[419276271,1775092245726,-500.0,0.00015999,2]
[419276272,1775092245737,-544.8,0.00015999,2]
[419276273,1775092245747,-500.0,0.00015999,2]
[419276274,1775092245756,-500.0,0.00015999,2]
[419276275,1775092245766,-500.0,0.00015999,2]
[419276276,1775092245775,-500.0,0.00015999,2]
[419276277,1775092245785,-500.0,0.00015999,2]
[419276278,1775092245794,-500.0,0.00015999,2]
[419276279,1775092245803,-500.0,0.00015999,2]
[419276280,1775092245812,-500.0,0.00015999,2]
[419276281,1775092245822,-500.0,0.00015999,2]
[419276282,1775092245831,-500.0,0.00015999,2]
[419276283,1775092245840,-500.0,0.00015999,2]
[419276284,1775092245850,-500.0,0.00015999,2]
[419276285,1775092245859,-453.4,0.00015999,2]
[419276286,1775092245868,-500.0,0.00015999,2]
[419276287,1775092245877,-500.0,0.00015999,2]
[419276288,1775092245886,-500.0,0.00015999,2]
[419276289,1775092245895,-500.0,0.00015999,2]
[419276290,1775092245905,-500.0,0.00015999,2]
[419276291,1775092245914,-500.0,0.00015999,2]
[419276292,1775092245924,-500.0,0.00015999,2]
[419276293,1775092245933,-500.0,0.00015999,2]
[419276294,1775092245942,-500.0,0.00015999,2]
[419276295,1775092245951,-500.0,0.00015999,2]
[419276296,1775092245960,-500.0,0.00015999,2]
[419276297,1775092245969,-500.0,0.00015999,2]
[419276298,1775092245979,-500.0,0.00015999,2]
[419276299,1775092245990,-500.0,0.00015999,2]
[419276300,1775092245999,-500.0,0.00015999,2]
[419276301,1775092246008,-500.0,0.00015999,2]
[419276302,1775092246018,-500.0,0.00015999,2]
[419276303,1775092246027,-500.0,0.00015999,2]
[419276304,1775092246036,-500.0,0.00015999,2]
[419276306,1775092246046,-500.0,0.00015999,2]
[419276309,1775092246055,-500.0,0.00015999,2]
[419276311,1775092246064,-500.0,0.00015999,2]
[419276312,1775092246074,-500.0,0.00015999,2]
[419276313,1775092246085,-500.0,0.00015999,2]
[419276314,1775092246095,-500.0,0.00015999,2]
[419276315,1775092246106,-500.0,0.00015999,2]
[419276316,1775092246116,-500.0,0.00015999,2]
[419276317,1775092246127,-500.0,0.00015999,2]
[419276318,1775092246136,-500.0,0.00015999,2]
[419276319,1775092246146,-500.0,0.00015999,2]
[419276320,1775092246156,-500.0,0.00015999,2]
[419276321,1775092246166,-500.0,0.00015999,2]
[419276322,1775092246176,-500.0,0.00015999,2]
[419276323,1775092246186,-500.0,0.00015999,2]
[419276324,1775092246196,-500.0,0.00015999,2]
[419276325,1775092246206,-500.0,0.00015999,2]
[419276326,1775092246216,-500.0,0.00015999,2]
[419276327,1775092246226,-500.0,0.00015999,2]
[419276328,1775092246236,-500.0,0.00015999,2]
[419276329,1775092246245,-500.0,0.00015999,2]
[419276330,1775092246255,-500.0,0.00015999,2]
[419276331,1775092246264,-380.9,0.00015999,2]
[419276332,1775092246273,-500.0,0.00015999,2]
[419276333,1775092246283,-500.0,0.00015999,2]
[419276334,1775092246292,-500.0,0.00015999,2]
[419276335,1775092246303,-500.0,0.00015999,2]
[419276336,1775092246312,-500.0,0.00015999,2]
[419276337,1775092246322,-500.0,0.00015999,2]
[419276338,1775092246332,-500.0,0.00015999,2]
[419276339,1775092246342,-500.0,0.00015999,2]
[419276340,1775092246353,-500.0,0.00015999,2]
[419276341,1775092246364,-500.0,0.00015999,2]
[419276342,1775092246375,-500.0,0.00015999,2]
[419276343,1775092246384,-500.0,0.00015999,2]
[419276344,1775092246394,-500.0,0.00015999,2]
[419276345,1775092246405,-191.17310529,0.00015999,2]
[419276346,1775092246414,-500.0,0.00015999,2]
[419276347,1775092246425,-500.0,0.00015999,2]
[419276348,1775092246436,-500.0,0.00015999,2]
[419276349,1775092246447,-500.0,0.00015999,2]
[419276350,1775092246457,-500.0,0.00015999,2]
[419276351,1775092246467,-500.0,0.00015999,2]
[419276352,1775092246480,-505.17997071,0.00015999,2]
[419276353,1775092246490,-500.0,0.00015999,2]
[419276354,1775092246499,-591.43361287,0.00015999,2]
[419276355,1775092246511,-2121.0,0.00016,5]
[419276356,1775092246521,-2008.0,0.00016,5]
[419276357,1775092246531,-1240.08245048,0.00016,2]
[419276358,1775092246540,-1603.0,0.00016,5]
[419276359,1775092246549,-754489.24947802,0.00016,2]
[419276360,1775092246559,-1345364.69354149,0.00016,2]
[419276361,1775092246632,-458.87313864,0.00016,2]
[419276362,1775092246644,-1146.36127367,0.00016,2]
[419276363,1775092246655,-272.24010028,0.00016,2]
[419276378,1775092247995,-500.0,0.000153,5]
[419276379,1775092248005,-199.12985642,0.00015773,2]
[419276380,1775092248015,-197.37598573,0.00015773,2]
[419276381,1775092248025,-91448.65201961,0.00016,2]
[419276382,1775092248204,-5534.0,0.000113,5]
[419276383,1775092248215,-1902.44781501,0.00011618,2]
[419276384,1775092248225,-1100.0,0.000154,5]
[419276385,1775092248236,-144869.127067,0.00016,2]
[419276386,1775092248252,-19000.024488,0.00016,2]
[419276387,1775092248262,-2718.61331124,0.00016,2]